[Event "Seattle Seafair Open"]
[Site "Chess.com"]
[Date "2020.07.19"]
[Round "5"]
[White "Boey, Chad"]
[Black "Chen, Minda"]
[Result "1/2-1/2"]
[ECO "B22"]
[WhiteElo "1496"]
[BlackElo "1966"]
[Annotator "Chad Boey"]
[PlyCount "184"]
[EventDate "2020.??.??"]
[SourceVersionDate "2020.06.27"]
[TimeControl "5400+10"]
[WhiteClock "0:02:12"]
[BlackClock "0:01:50"]

1. e4 {[%emt 0:00:04] I was having a bad tournament so far, with only two wins
and two losses.} c5 {[%emt 0:00:03] The last time I faced the Sicilian defense
was a day prior. A grandmaster unhatched his evil plan against me wherein he
sat back and did nearly nothing and waited for me to make a mistake. When the
mistake was finally made, punishment was swift and lethal. Is this how chess
is played? If so, I quit. But I still have hope there is room for art on the
board.} 2. d4 {[%emt 0:00:43] This time my opponent is not a grandmaster but
carries a title of "CM" which I can only guess stands for "criminal mastermind.
" I thought she might be sporty and willing to accept my gambit.} cxd4 {
[%emt 0:00:10]} 3. c3 {[%emt 0:00:04]} Nf6 {[%emt 0:00:04] I was wrong. This
is the most annoying way to decline the gambit, though not as cowardly as
playing pawn to d3. Only one master I've faced has ever accepted the gambit.}
4. e5 {[%emt 0:00:12]} Nd5 {[%emt 0:00:02]} 5. Nf3 {[%emt 0:04:37]} Nc6 {
[%emt 0:00:07]} 6. cxd4 $2 {[%emt 0:00:25] 6. Bc4 is preferable. This was a
hasty and unnecessary capture by me, which I regretted, but not for long.} (6.
Bc4 Nb6 7. Bb3) 6... d6 {[%emt 0:00:46]} 7. Bc4 {[%emt 0:05:03]} Nb6 {[%emt 0:
00:06]} 8. Bb3 {[%emt 0:04:11]} h6 $2 {[%emt 0:02:42] Mistake, dxe5 is much
better. I understood why she made this move, because I think she wanted to
play Bg4 to pin my knight soon, as most criminals do. If Bg4 immediately, it
falls to the tactic Bxf7, Kxf7, Ng5+ and wherever the king goes, Qxg4 would
come next.} (8... Bg4 9. Bxf7+ Kxf7 10. Ng5+ Ke8 11. Qxg4) 9. e6 $3 {[%emt 0:
03:41] The move I'm most proud of here. This is a pawn sacrifice I've employed
frequently against Alekhine's defense. I calculated the continuation after
fxe6 and my opponent, wisely I think, opted to sacrifice a piece for two pawns.
Not a coward after all!} Bxe6 $6 {[%emt 0:11:20] Taking with fxe6 would leave
black's kingside development in a jam to untangle and create holes in the
fortress.} (9... fxe6 10. Qd3 Kd7 11. Qg6) 10. d5 {[%emt 0:00:30]} Nxd5 {
[%emt 0:01:47]} 11. Bxd5 {[%emt 0:00:04]} Qa5+ {[%emt 0:03:26]} 12. Nc3 {
[%emt 0:00:03]} Bxd5 {[%emt 0:00:03] A bold choice, but I understand the
reasons behind it. Black is seeking clarity and simplicity in the position.
Whether she knows it or not, she is communicating to me that she would like to
move on to the endgame stage. Message received, and I will do my best to not
cooperate with her plans.} 13. Qxd5 {[%emt 0:00:04]} Qxd5 {[%emt 0:00:03]} 14.
Nxd5 {[%emt 0:00:01]} Kd7 $1 {[%emt 0:00:04] Now black's plan becomes clear to
me. The black king stands strong behind army of pawns that will march forward.
I wish I had eaten lunch, this is going to take some work.} 15. O-O {[%emt 0:
00:05] Premature castling by me, much better would have been 15. Be3} e6 {
[%emt 0:01:54]} 16. Nc3 {[%emt 0:00:27]} Be7 {[%emt 0:03:19]} 17. Bf4 $2 {
[%emt 0:01:00] This bishop would be better on e3.} g5 {[%emt 0:00:46]} 18. Bg3
$2 {[%emt 0:03:43] Again, I obsess over this diagonal and pay the price. The
bishop should have gone to e3. Caught between the enemy soldiers and the
castle walls, the bishop is going to jail for now.} (18. Be3 f5 19. Rfd1) 18...
f5 {[%emt 0:01:53]} 19. h3 {[%emt 0:06:43]} h5 {[%emt 0:10:07]} 20. Rfd1 {
[%emt 0:03:34]} f4 {[%emt 0:01:28]} 21. Bh2 {[%emt 0:00:16]} Raf8 {[%emt 0:10:
43]} 22. Ne4 $1 {[%emt 0:08:22] I dare you to play g4!} g4 {[%emt 0:09:53]} 23.
Nc5+ {[%emt 0:07:57]} Kc8 {[%emt 0:00:24]} 24. Nxe6 {[%emt 0:00:08]} Rfg8 {
[%emt 0:02:01] Black chooses to keep the rook pair and allow me to move my
knight. But then I realize that black's g-pawn will simply push forward,
twice-defended and I will lose a piece either way.} 25. Bxf4 $6 {[%emt 0:10:39]
I have accepted that black will equalize and decide to keep the bishop.
Perhaps it would have been better to move the knight and allow the g-pawn to
come forward, keeping the castle walls intact.} (25. Ne1 g3 26. Rac1 gxh2+ 27.
Kxh2) 25... gxf3 {[%emt 0:00:12]} 26. g3 {[%emt 0:00:47]} h4 {[%emt 0:04:24]
Now I see that black's h-pawn and f-pawn are willing to work for me. Maybe
they just want to be on the winning side? They arrive and I welcome them as
reinforcements to my castle walls. With their help, the pigs will never break
through.} 27. g4 {[%emt 0:02:33]} Rg6 {[%emt 0:02:12]} 28. Nd4 {[%emt 0:02:14]}
Rf8 {[%emt 0:04:04]} 29. Be3 {[%emt 0:04:18]} Ne5 {[%emt 0:03:32]} 30. Kh1 {
[%emt 0:01:24]} a6 {[%emt 0:01:51]} 31. Nf5 {[%emt 0:01:32]} Kd7 {[%emt 0:00:
28]} 32. Rac1 {[%emt 0:00:22]} Re8 {[%emt 0:03:42]} 33. Bf4 {[%emt 0:00:21]}
Bd8 {[%emt 0:02:31]} 34. Rc3 {[%emt 0:02:49]} Nf7 {[%emt 0:02:17]} 35. Rxf3 {
[%emt 0:00:33]} Re2 {[%emt 0:00:22]} 36. Rd2 {[%emt 0:00:28]} Re1+ $6 {[%emt 0:
00:36] A blitz move?} 37. Kg2 {[%emt 0:00:11]} Re4 {[%emt 0:01:24]} 38. Bh2 {
[%emt 0:01:14]} Bg5 $2 {[%emt 0:01:18] Another blitz move! If only I had used
my time to calculate how to punish it.} 39. Rc2 $2 {[%emt 0:01:10] More
accurate was Nxh4 and then black would have to make some choices.} (39. Nxh4
Bxd2 (39... Bxh4 40. Rxf7+) 40. Nxg6 Ng5 41. Rd3) 39... Ne5 {[%emt 0:01:21]}
40. Rfc3 {[%emt 0:02:07]} Bd8 {[%emt 0:00:36]} 41. f3 {[%emt 0:00:55]} Re1 {
[%emt 0:00:55]} 42. Bf4 {[%emt 0:03:03]} Ba5 {[%emt 0:00:46]} 43. Rb3 {[%emt 0:
00:51]} b5 {[%emt 0:00:04]} 44. Re3 $6 {[%emt 0:00:21] Inaccuracy. Nxh4 was
best.} (44. Nxh4 Re6 45. Nf5 Bb6 46. Bxe5 R6xe5 47. h4 Rd1 48. h5 Re6 49. Rbc3
a5 50. h6 Re8) 44... Rxe3 {[%emt 0:00:13]} 45. Bxe3 {[%emt 0:00:10]} Nc4 {
[%emt 0:00:09]} 46. Bf2 {[%emt 0:00:12]} Bd8 {[%emt 0:00:42]} 47. b3 $36 {
[%emt 0:00:29] Perhaps better is to take the h-pawn immediately with Bxh4, but
I saw no reason to simplify the game with the resulting trade of pieces when I
had the advantage in both material and time.} (47. Bxh4 Bxh4 48. Nxh4 Ne3+ 49.
Kg3 Nxc2 (49... Rxg4+ 50. fxg4 Nxc2 51. Nf5 Ke6 52. h4) 50. Nxg6) 47... Ne5 {
[%emt 0:00:04]} 48. Bxh4 {[%emt 0:00:28]} Bxh4 {[%emt 0:00:15]} 49. Nxh4 {
[%emt 0:00:03]} Re6 {[%emt 0:00:10]} 50. Nf5 {[%emt 0:00:15]} Nd3 {[%emt 0:00:
06]} 51. Kg3 {[%emt 0:00:36]} a5 {[%emt 0:00:26]} 52. h4 {[%emt 0:00:08]} a4 {
[%emt 0:00:04]} 53. bxa4 {[%emt 0:00:07]} bxa4 {[%emt 0:00:03]} 54. h5 {
[%emt 0:00:09]} Nc5 {[%emt 0:00:28]} 55. h6 {[%emt 0:00:23]} Re8 {[%emt 0:00:
03]} 56. Rd2 {[%emt 0:00:20]} Nb7 {[%emt 0:00:07]} 57. Rd4 {[%emt 0:00:16]} a3
{[%emt 0:00:04]} 58. Ra4 {[%emt 0:00:14]} Re1 {[%emt 0:00:07]} 59. Rxa3 {
[%emt 0:00:06]} Rh1 {[%emt 0:00:02]} 60. Ra8 $2 {[%emt 0:00:12] A nonsense
move. Simply 60. Kg2 is winning.} (60. Kg2 Rxh6 61. Nxh6) 60... Ke6 {[%emt 0:
00:06]} 61. h7 $4 {[%emt 0:00:10] The worst move I made all game. Fatigue set
in. It is at this stage of the game that my opponent's skills start to shine.}
Rxh7 {[%emt 0:00:06]} 62. Ra7 {[%emt 0:00:18]} d5 {[%emt 0:00:21]} 63. Nd4+ {
[%emt 0:00:19]} Kd6 {[%emt 0:00:12]} 64. a4 {[%emt 0:00:10]} Kc5 {[%emt 0:00:
09]} 65. Ne6+ {[%emt 0:00:22]} Kb6 {[%emt 0:00:09]} 66. Ra8 {[%emt 0:00:08]}
Re7 {[%emt 0:00:04]} 67. Nd4 {[%emt 0:00:40]} Re1 {[%emt 0:00:12]} 68. g5 {
[%emt 0:01:15]} Kc5 {[%emt 0:00:04]} 69. Nb5 $6 {[%emt 0:00:17] Inaccuracy.
Nf5 was best.} (69. Nf5 Rg1+ 70. Kf4) 69... d4 {[%emt 0:00:04]} 70. Rc8+ {
[%emt 0:00:09]} Kd5 {[%emt 0:00:12]} 71. Rc7 $4 {[%emt 0:00:13] Another
blunder I made. Kf2 was best. The endgame is her comfort zone and she is
making it known. The tables have turned. My weakness and her strength are on
full display now. Do I have time to pop something in the microwave? Gosh I'm
hungry.} (71. Kf2 Rh1 72. f4 Rh4 73. Kg3) 71... Nc5 {[%emt 0:00:02]} 72. Rc8 {
[%emt 0:00:30]} d3 {[%emt 0:00:09]} 73. Kf4 {[%emt 0:00:28]} Kc4 {[%emt 0:00:
18]} 74. Nd6+ $6 {[%emt 0:01:28] A better move would have been Na3+:} (74. Na3+
Kb4 75. Nb1) 74... Kb4 {[%emt 0:00:53]} 75. Ne4 {[%emt 0:00:45]} Rxe4+ {
[%emt 0:00:27]} 76. fxe4 {[%emt 0:00:00]} d2 {[%emt 0:00:01]} 77. Rd8 $10 {
[%emt 0:00:04] It is now that I have accepted this will be a draw. Black's
devious plan to draw the game has come to fruition. Criminal masterminds
frequently do this against me.} Ne6+ {[%emt 0:00:02]} 78. Ke3 {[%emt 0:00:03]}
Nxd8 {[%emt 0:00:02]} 79. Kxd2 {[%emt 0:00:01]} Kxa4 {[%emt 0:00:03]} 80. Ke3 {
[%emt 0:00:01]} Kb5 {[%emt 0:00:01]} 81. Kf4 {[%emt 0:00:01]} Kc6 {[%emt 0:00:
01]} 82. Kf5 {[%emt 0:00:01]} Kd7 {[%emt 0:00:07] Black offers the draw. I
know it's a draw, but I say: prove it!} 83. g6 {[%emt 0:00:13] I've been
robbed again and I'm not happy. You have achieved a draw, but that doesn't
mean I'm going to lay down and take it.} Ke8 {[%emt 0:00:04]} 84. e5 {[%emt 0:
00:06]} Ke7 {[%emt 0:00:10]} 85. Kg5 {[%emt 0:00:36]} Ne6+ {[%emt 0:00:28]} 86.
Kh6 {[%emt 0:00:05]} Kf8 {[%emt 0:00:03]} 87. Kh7 {[%emt 0:00:26]} Ng7 {
[%emt 0:00:03]} 88. Kh6 {[%emt 0:00:06]} Ne6 {[%emt 0:00:02]} 89. Kh5 {[%emt 0:
00:07]} Kg7 {[%emt 0:00:02]} 90. Kg4 {[%emt 0:00:06]} Kxg6 {[%emt 0:00:01]} 91.
Kf3 {[%emt 0:00:02]} Kf5 {[%emt 0:00:02]} 92. Ke3 {[%emt 0:00:01] This type of
draw is more painful for me than a loss. It won't be a draw the next time we
meet, one way or another.} Kxe5 {[%emt 0:00:01] 1/2-1/2 The game is a draw.}
1/2-1/2

[Event "Seattle Seafair Open"]
[Site "Chess.com"]
[Date "2020.07.19"]
[Round "5"]
[White "Chen, Angela"]
[Black "Zhang, Michael"]
[Result "0-1"]
[ECO "C50"]
[WhiteElo "1421"]
[BlackElo "977"]
[Annotator "Michael Zhang"]
[PlyCount "74"]
[EventDate "2020.??.??"]
[SourceVersionDate "2020.06.27"]
[TimeControl "5400+10"]
[WhiteClock "0:40:52"]
[BlackClock "0:32:29"]

1. e4 {[%emt 0:00:03]} e5 {[%emt 0:00:18]} 2. Nf3 {[%emt 0:00:04]} Nc6 {
[%emt 0:00:12]} 3. Bc4 {[%emt 0:00:05]} Bc5 {[%emt 0:00:03]} 4. d3 {[%emt 0:00:
15]} Nf6 {[%emt 0:00:07]} 5. Bg5 {[%emt 0:00:08] This is not good move because
black has not castled.} h6 {[%emt 0:00:03]} (5... d6) 6. Bh4 {[%emt 0:00:05]}
g5 {[%emt 0:00:41] Black could have waited to play this move because this move
may scare white from castling king side.} 7. Bg3 {[%emt 0:00:19]} d6 {[%emt 0:
00:21] This move opens the light square bishop and defends the e5 pawn.} 8. O-O
{[%emt 0:00:28]} Bg4 {[%emt 0:00:06]} (8... h5 {h5 sets up a trap but requires
sacrificing the queen.} 9. Nxg5 (9. h4 {h4 is white's best defense because the
position will be locked.} g4 10. Ng5) 9... h4 10. Nxf7 hxg3 11. Nxd8 Bg4 12.
Qd2 Nd4 13. Re1 (13. Nc3 Nf3+ 14. gxf3 Bxf3 {Checkmate is unstoppable.}) 13...
Nf3+ 14. gxf3 Bxf3 15. Rf1 (15. Kf1 Rxh2 16. fxg3 Rh1#) 15... gxh2#) 9. h3 {
[%emt 0:00:12]} Bh5 {[%emt 0:00:28]} 10. c3 {[%emt 0:00:12]} g4 {[%emt 0:00:09]
} 11. hxg4 {[%emt 0:00:10]} Bxg4 {[%emt 0:00:09] Black keeps the pin on the f3
knight.} 12. Nbd2 {[%emt 0:00:15] This move stopped black's king side attack.}
h5 {[%emt 0:00:07] A better move for black is Nh5 or Qd7 to avoid the pin by
Bh4.} 13. Qc2 {[%emt 0:00:34]} d5 {[%emt 0:02:00] This is a losing move for
black because it opens the center when black king has not castled yet.} 14.
exd5 {[%emt 0:00:33]} Nxd5 {[%emt 0:00:05]} 15. Nxe5 {[%emt 0:00:30]} h4 {
[%emt 0:02:00]} 16. Nxc6 {[%emt 0:00:12]} bxc6 {[%emt 0:00:11]} 17. Rfe1+ {
[%emt 0:01:33]} Kf8 {[%emt 0:00:22]} 18. Be5 {[%emt 0:00:18]} Rh6 {[%emt 0:00:
19]} 19. d4 {[%emt 0:00:14]} h3 {[%emt 0:02:53] Black is focusing on opening
the white king. But this is a bad move because black would lose a piece.} 20.
dxc5 {[%emt 0:01:59]} hxg2 {[%emt 0:00:16]} 21. Kxg2 {[%emt 0:00:36] Now white
king is openn} Bh3+ {[%emt 0:00:08]} 22. Kg1 {[%emt 0:03:03]} Qg5+ {[%emt 0:00:
19]} 23. Bg3 {[%emt 0:00:08]} Nf4 {[%emt 0:00:43] Black brings more pieces
into the attack on white king.} 24. Qe4 {[%emt 0:01:46] White brings more
defenders to the king. It is not looking good for black.} Rg6 {[%emt 0:07:09]}
(24... Nh5 {Nh5 is a better move because it puts pressure on the pinned piece.}
) 25. Nf3 {[%emt 0:03:32]} Qf6 {[%emt 0:06:08]} 26. Ne5 {[%emt 0:01:58]} Rg7 {
[%emt 0:00:58] Black retreats rook to g7 to defend the f7 pawn,} 27. Nd7+ {
[%emt 0:00:08] White blundered a piece with this move.} Bxd7 {[%emt 0:00:07]}
28. Re3 {[%emt 0:03:22] I think white is trying to do Alekhine's Gun. But
black did not allow this to happen.} Nh3+ {[%emt 0:01:11]} 29. Kg2 {[%emt 0:05:
28]} Nf4+ {[%emt 0:22:41]} (29... Qxf2+ {This move looks tempting but black
will run of good checks.} 30. Kh1) 30. Kg1 {[%emt 0:03:46]} Nh3+ {[%emt 0:02:
42]} 31. Kf1 {[%emt 0:12:01] White made this move probably because white does
not want a draw by repetition. But this move put the white king under a pin.
Black played decisively from this point on.} Rxg3 {[%emt 0:00:36]} 32. Ke2 {
[%emt 0:01:50] White could avoid forced mate with Qe7+. After this move,
checkmate is unstoppable.} Qxf2+ {[%emt 0:00:59]} 33. Kd3 {[%emt 0:05:03]} Bf5
{[%emt 0:03:47]} 34. Kd4 {[%emt 0:02:07]} Bxe4 {[%emt 0:02:11]} 35. Kxe4 {
[%emt 0:00:57]} Rxe3+ {[%emt 0:00:16]} 36. Kd4 {[%emt 0:01:10]} Qd2+ {[%emt 0:
02:54]} (36... Qf4# {Black missed a checkmate in one here.}) 37. Bd3 {[%emt 0:
00:17]} Qxd3# {[%emt 0:00:02] Black won by checkmate} 0-1

[Event "Seattle Seafair Open"]
[Site "Chess.com"]
[Date "2020.07.18"]
[Round "2"]
[White "Beck, Alec"]
[Black "Kona, Vidip"]
[Result "1/2-1/2"]
[ECO "E65"]
[WhiteElo "1942"]
[BlackElo "1261"]
[Annotator "Vidip Kona"]
[PlyCount "108"]
[EventDate "2020.??.??"]
[SourceVersionDate "2020.06.27"]
[TimeControl "5400+10"]
[WhiteClock "0:02:25"]
[BlackClock "0:54:50"]

1. d4 {[%emt 0:00:09]} Nf6 {[%emt 0:00:25]} 2. c4 {[%emt 0:00:26]} g6 {[%emt 0:
00:12]} 3. Nc3 {[%emt 0:00:03]} Bg7 {[%emt 0:00:24]} 4. g3 {[%emt 0:00:42] I
played kings indian defence.} O-O {[%emt 0:00:16]} 5. Bg2 {[%emt 0:01:46]} d6 {
[%emt 0:00:29]} 6. Nf3 {[%emt 0:01:06] I thought here White would play the
move d5 and gain some space in the center. But my opponent castled in king
side.} c5 {[%emt 0:01:01]} 7. O-O {[%emt 0:00:39]} Nbd7 {[%emt 0:00:59] I
wanted to play b6. Since Bishop on g2 is targeting my a8 rook,so I played Rb8
first to avoid future threats.} 8. e3 {[%emt 0:01:02]} Rb8 {[%emt 0:00:26]} 9.
b3 {[%emt 0:03:04]} b6 {[%emt 0:00:43]} 10. Bb2 {[%emt 0:01:59]} Bb7 {[%emt 0:
00:11] I think my position is okay and my pieces are developed} 11. Qc2 {
[%emt 0:02:25]} a6 {[%emt 0:01:18]} 12. a4 {[%emt 0:02:03]} Qc7 {[%emt 0:00:41]
} 13. Rac1 {[%emt 0:07:51]} Rbc8 {[%emt 0:00:31] My Rook on B8 is doing
nothing, so I improved my piece by lining the rook to attack the queen on c2.}
14. Qb1 {[%emt 0:01:13]} Qb8 {[%emt 0:00:31]} 15. Rfd1 {[%emt 0:01:17]} Rfd8 {
[%emt 0:01:20]} 16. Ne1 {[%emt 0:01:20]} Bxg2 {[%emt 0:00:37] I am happy to
exchange the light square Bishop in this position.} 17. Nxg2 {[%emt 0:00:31]}
Qb7 {[%emt 0:00:40]} 18. d5 {[%emt 0:02:31]} Ne5 {[%emt 0:00:33]} 19. Nf4 {
[%emt 0:01:26]} Qd7 {[%emt 0:01:49] My plan is to play Qg4 and try to create
some pressure on White King side.} 20. Ne4 {[%emt 0:08:24]} Nxe4 {[%emt 0:01:
06]} 21. Qxe4 {[%emt 0:00:22]} Nf3+ {[%emt 0:00:21]} 22. Qxf3 {[%emt 0:00:02]}
Bxb2 {[%emt 0:00:13] Here I felt black has slight advantage because Bishop is
more active and controlling the center.} 23. Rc2 {[%emt 0:00:02]} Bg7 {[%emt 0:
00:18]} 24. Nd3 {[%emt 0:01:31]} Re8 {[%emt 0:00:46]} 25. e4 {[%emt 0:01:30]}
Rb8 {[%emt 0:00:31]} 26. Re1 {[%emt 0:02:13]} Qc7 {[%emt 0:00:58]} 27. Rce2 {
[%emt 0:08:41]} e6 {[%emt 0:01:42]} 28. e5 {[%emt 0:11:50] I didn/^t expect e5
move in this position, i think this is good move. I thought While will play
dxe6, Rxe6 and I have some counter play with that move.} dxe5 {[%emt 0:00:49]}
29. Nxe5 {[%emt 0:00:41]} exd5 {[%emt 0:00:30]} 30. Qxd5 {[%emt 0:00:45]} Rbd8
{[%emt 0:01:08]} 31. Qc6 {[%emt 0:04:02]} Qxc6 {[%emt 0:01:37]} 32. Nxc6 {
[%emt 0:00:07]} Rxe2 {[%emt 0:00:22]} 33. Rxe2 {[%emt 0:00:00]} Rd3 {[%emt 0:
00:02]} 34. Re3 {[%emt 0:00:30]} Rd6 {[%emt 0:01:17]} 35. Ne7+ {[%emt 0:01:44]}
Kf8 {[%emt 0:00:34]} 36. Nd5 {[%emt 0:01:49]} Bd4 {[%emt 0:02:42] In this
position I played Bd4 to give some room for my king to come into the game.} 37.
Re2 {[%emt 0:01:58]} b5 {[%emt 0:00:49]} 38. axb5 {[%emt 0:01:35]} axb5 {
[%emt 0:00:24]} 39. Nc7 {[%emt 0:03:03]} bxc4 {[%emt 0:00:23]} 40. bxc4 {
[%emt 0:00:10]} Rb6 {[%emt 0:01:47]} 41. Nb5 {[%emt 0:01:29]} Ra6 {[%emt 0:01:
48] Here I thought my opponent capture my bishop and take the game to Rook
ending. But he didn/^t exchange.} 42. Rd2 {[%emt 0:02:11]} Bf6 {[%emt 0:01:02]}
43. Nc7 {[%emt 0:03:33]} Rc6 {[%emt 0:00:32]} 44. Nd5 {[%emt 0:00:29]} Bd4 {
[%emt 0:00:21]} 45. Kg2 {[%emt 0:00:14]} Re6 {[%emt 0:00:39]} 46. Kf3 {[%emt 0:
00:46]} f5 {[%emt 0:00:20]} 47. Re2 {[%emt 0:00:41]} Kf7 {[%emt 0:00:47]} 48.
Ra2 {[%emt 0:00:30]} g5 {[%emt 0:00:42]} 49. Ra7+ {[%emt 0:02:29]} Kg6 {
[%emt 0:00:32]} 50. h4 {[%emt 0:00:26]} h6 {[%emt 0:00:47]} 51. Ne7+ {[%emt 0:
00:37]} Kf6 {[%emt 0:00:22]} 52. Nd5+ {[%emt 0:00:29] My opponent is in time
trouble but I don/^t have any good moves in this position to win the game. We
repeated the moves and agreed for draw.} Kg6 {[%emt 0:03:36]} 53. Ne7+ {
[%emt 0:00:05]} Kf6 {[%emt 0:00:30]} 54. Nd5+ {[%emt 0:00:03]} Kg6 {[%emt 0:00:
53] Game drawn by repetition} 1/2-1/2